[Event "Early-Titled-Tuesday-Blitz-May-14-2024"]
[Site "Chess.com"]
[Date "2024.05.14"]
[Round "7"]
[White "briesmas"]
[Black "DvaHrasta"]
[Result "1-0"]
[WhiteElo "2357"]
[BlackElo "2517"]
[TimeControl "180+1"]
[EndTime "9:21:06 PDT"]
[Termination "briesmas won on time"]

1. e4 {[%clk 0:01:55.4]} 1... c6 {[%clk 0:02:48.7]} 2. d4 {[%clk 0:01:55.2]}
2... d5 {[%clk 0:02:47.3]} 3. exd5 {[%clk 0:01:55.6]} 3... cxd5 {[%clk
0:02:47.3]} 4. Bd3 {[%clk 0:01:56]} 4... Nc6 {[%clk 0:02:47.1]} 5. c3 {[%clk
0:01:56.5]} 5... e5 {[%clk 0:02:47.3]} 6. dxe5 {[%clk 0:01:54.1]} 6... Nxe5
{[%clk 0:02:48.2]} 7. Ne2 {[%clk 0:01:47.8]} 7... Nf6 {[%clk 0:02:38.7]} 8. Bf4
{[%clk 0:01:46]} 8... Bd6 {[%clk 0:02:35.6]} 9. O-O {[%clk 0:01:45.2]} 9... O-O
{[%clk 0:02:33.2]} 10. Bc2 {[%clk 0:01:41.8]} 10... Bg4 {[%clk 0:02:28.2]} 11.
f3 {[%clk 0:01:32.4]} 11... Qb6+ {[%clk 0:02:23.3]} 12. Kh1 {[%clk 0:01:28]}
12... Qxb2 {[%clk 0:02:18.7]} 13. Nd2 {[%clk 0:01:12.2]} 13... Be6 {[%clk
0:02:14.6]} 14. Rb1 {[%clk 0:01:04.4]} 14... Qxa2 {[%clk 0:02:13.3]} 15. Rxb7
{[%clk 0:01:03.8]} 15... Rab8 {[%clk 0:02:11.5]} 16. Rxb8 {[%clk 0:01:02.4]}
16... Rxb8 {[%clk 0:02:10.5]} 17. Nd4 {[%clk 0:01:02.9]} 17... Rb2 {[%clk
0:01:54]} 18. N2b3 {[%clk 0:00:53.3]} 18... a5 {[%clk 0:01:46.5]} 19. Bxe5
{[%clk 0:00:48.6]} 19... Bxe5 {[%clk 0:01:45.5]} 20. Qd3 {[%clk 0:00:48.8]}
20... Qa3 {[%clk 0:01:30]} 21. Ra1 {[%clk 0:00:45.3]} 21... Ra2 {[%clk 0:01:30]}
22. Re1 {[%clk 0:00:38.1]} 22... Bxd4 {[%clk 0:01:23.2]} 23. Nxd4 {[%clk
0:00:37.9]} 23... Ra1 {[%clk 0:01:22]} 24. Qd2 {[%clk 0:00:28.3]} 24... Qb2
{[%clk 0:01:15.2]} 25. h4 {[%clk 0:00:22.3]} 25... a4 {[%clk 0:01:14.4]} 26.
Bxh7+ {[%clk 0:00:20.9]} 26... Kxh7 {[%clk 0:01:12.3]} 27. Qxb2 {[%clk
0:00:20.8]} 27... Rxe1+ {[%clk 0:01:11.9]} 28. Kh2 {[%clk 0:00:21.4]} 28... Bd7
{[%clk 0:00:58.3]} 29. Qd2 {[%clk 0:00:21.4]} 29... Ra1 {[%clk 0:00:52.4]} 30.
Nc2 {[%clk 0:00:20.6]} 30... Ra2 {[%clk 0:00:50.3]} 31. Qd3+ {[%clk 0:00:20.6]}
31... g6 {[%clk 0:00:49.4]} 32. Nb4 {[%clk 0:00:20.8]} 32... Ra3 {[%clk
0:00:45.9]} 33. h5 {[%clk 0:00:15.8]} 33... Bf5 {[%clk 0:00:31.3]} 34. hxg6+
{[%clk 0:00:14.6]} 34... Kxg6 {[%clk 0:00:30.4]} 35. Qd4 {[%clk 0:00:13.3]}
35... Be6 {[%clk 0:00:27.5]} 36. g4 {[%clk 0:00:13.1]} 36... Rb3 {[%clk
0:00:26.5]} 37. Qd3+ {[%clk 0:00:10.1]} 37... Kg7 {[%clk 0:00:24.2]} 38. g5
{[%clk 0:00:09.5]} 38... Rb2+ {[%clk 0:00:21.6]} 39. Kg1 {[%clk 0:00:05.7]}
39... Nh5 {[%clk 0:00:19.5]} 40. c4 {[%clk 0:00:05.9]} 40... Rxb4 {[%clk
0:00:18.2]} 41. Qc3+ {[%clk 0:00:06.1]} 41... d4 {[%clk 0:00:16.4]} 42. Qxb4
{[%clk 0:00:06.2]} 42... Bd7 {[%clk 0:00:14.1]} 43. c5 {[%clk 0:00:06.7]} 43...
Kg6 {[%clk 0:00:11.5]} 44. Qxd4 {[%clk 0:00:05.8]} 44... Be6 {[%clk 0:00:08.5]}
45. f4 {[%clk 0:00:06.1]} 45... Kf5 {[%clk 0:00:07.9]} 46. Qe5+ {[%clk
0:00:05.3]} 46... Kg4 {[%clk 0:00:08.2]} 47. Kf2 {[%clk 0:00:03.7]} 47... Nxf4
{[%clk 0:00:08.1]} 48. Qd4 {[%clk 0:00:03.6]} 48... Kxg5 {[%clk 0:00:07.7]} 49.
Qxa4 {[%clk 0:00:02.9]} 49... Nd3+ {[%clk 0:00:07.7]} 50. Ke3 {[%clk 0:00:03.3]}
50... Ne5 {[%clk 0:00:07.5]} 51. Qf4+ {[%clk 0:00:03.1]} 51... Kg6 {[%clk
0:00:07.6]} 52. Qxe5 {[%clk 0:00:04]} 52... Bd7 {[%clk 0:00:05.8]} 53. Qd6+
{[%clk 0:00:04.8]} 53... Be6 {[%clk 0:00:06]} 54. c6 {[%clk 0:00:04.8]} 54...
Kf5 {[%clk 0:00:06]} 55. c7 {[%clk 0:00:05.7]} 55... Kg4 {[%clk 0:00:05.6]} 56.
Qf4+ {[%clk 0:00:05.7]} 56... Kh5 {[%clk 0:00:05.7]} 57. Qd6 {[%clk 0:00:06.3]}
57... Kg4 {[%clk 0:00:05.4]} 58. Qxe6+ {[%clk 0:00:06.6]} 58... fxe6 {[%clk
0:00:05.2]} 59. c8=Q {[%clk 0:00:06.9]} 59... Kf5 {[%clk 0:00:06.1]} 60. Qc4
{[%clk 0:00:06.7]} 60... Ke5 {[%clk 0:00:06.1]} 61. Qe4+ {[%clk 0:00:07.6]}
61... Kd6 {[%clk 0:00:06.1]} 62. Kd4 {[%clk 0:00:08.5]} 62... e5+ {[%clk
0:00:05]} 63. Qxe5+ {[%clk 0:00:09.4]} 63... Kc6 {[%clk 0:00:04.9]} 64. Qd5+
{[%clk 0:00:09.3]} 64... Kb6 {[%clk 0:00:04.8]} 65. Qc5+ {[%clk 0:00:09.2]}
65... Kb7 {[%clk 0:00:04.8]} 66. Kd5 {[%clk 0:00:09.5]} 66... Ka6 {[%clk
0:00:05.1]} 67. Kd6 {[%clk 0:00:09.1]} 67... Kb7 {[%clk 0:00:05.1]} 68. Qc6+
{[%clk 0:00:09.7]} 68... Kb8 {[%clk 0:00:04.8]} 69. Qd7 {[%clk 0:00:10.3]} 1-0

[Event "Early-Titled-Tuesday-Blitz-May-14-2024"]
[Site "Chess.com"]
[Date "2024.05.14"]
[Round "7"]
[White "KononenkoD"]
[Black "Byniolus"]
[Result "0-1"]
[WhiteElo "2613"]
[BlackElo "2824"]
[TimeControl "180+1"]
[EndTime "9:21:07 PDT"]
[Termination "Byniolus won by checkmate"]

1. d4 {[%clk 0:03:00]} 1... d6 {[%clk 0:03:00.1]} 2. c4 {[%clk 0:02:59.7]} 2...
e5 {[%clk 0:02:59.5]} 3. dxe5 {[%clk 0:02:58.9]} 3... dxe5 {[%clk 0:03:00.4]} 4.
Qxd8+ {[%clk 0:02:59.1]} 4... Kxd8 {[%clk 0:03:01.3]} 5. g3 {[%clk 0:02:59.3]}
5... Be6 {[%clk 0:03:01]} 6. Nd2 {[%clk 0:02:57.2]} 6... Na6 {[%clk 0:02:52.3]}
7. a3 {[%clk 0:02:54.1]} 7... c6 {[%clk 0:02:45.4]} 8. Bh3 {[%clk 0:02:54.2]}
8... Bxh3 {[%clk 0:02:37.5]} 9. Nxh3 {[%clk 0:02:55.1]} 9... f6 {[%clk
0:02:37.3]} 10. f4 {[%clk 0:02:53.8]} 10... Bd6 {[%clk 0:02:32.5]} 11. Ne4
{[%clk 0:02:44.9]} 11... Bc7 {[%clk 0:02:05.8]} 12. Be3 {[%clk 0:02:43.9]} 12...
Ne7 {[%clk 0:01:40.7]} 13. O-O-O+ {[%clk 0:02:42.8]} 13... Ke8 {[%clk
0:01:41.1]} 14. fxe5 {[%clk 0:02:24.9]} 14... Bxe5 {[%clk 0:01:38.9]} 15. Nf4
{[%clk 0:02:24.6]} 15... Nc7 {[%clk 0:01:34.3]} 16. Bc5 {[%clk 0:02:17.6]} 16...
b5 {[%clk 0:01:05.7]} 17. Nd6+ {[%clk 0:02:05.1]} 17... Bxd6 {[%clk 0:00:56]}
18. Bxd6 {[%clk 0:02:06]} 18... Rc8 {[%clk 0:00:50.4]} 19. Bxc7 {[%clk
0:02:01.5]} 19... Rxc7 {[%clk 0:00:51.3]} 20. Ne6 {[%clk 0:02:00.3]} 20... Rc8
{[%clk 0:00:51.8]} 21. Nxg7+ {[%clk 0:01:56.9]} 21... Kf7 {[%clk 0:00:51.8]} 22.
Nh5 {[%clk 0:01:57.1]} 22... bxc4 {[%clk 0:00:49.3]} 23. Rd7 {[%clk 0:01:47.3]}
23... a5 {[%clk 0:00:34.1]} 24. Rf1 {[%clk 0:01:46.1]} 24... Ke6 {[%clk
0:00:32.3]} 25. Ra7 {[%clk 0:01:36.1]} 25... Rhf8 {[%clk 0:00:19.8]} 26. Rxa5
{[%clk 0:01:22.4]} 26... Nd5 {[%clk 0:00:13.8]} 27. e4 {[%clk 0:01:15.6]} 27...
Ne3 {[%clk 0:00:12.5]} 28. Rf3 {[%clk 0:01:10.3]} 28... Ng4 {[%clk 0:00:10.7]}
29. h3 {[%clk 0:01:09]} 29... Ne5 {[%clk 0:00:10.1]} 30. Rf5 {[%clk 0:01:02.5]}
30... Rcd8 {[%clk 0:00:06.8]} 31. Nf4+ {[%clk 0:01:02]} 31... Kd6 {[%clk
0:00:02.7]} 32. Rh5 {[%clk 0:00:57]} 32... Rf7 {[%clk 0:00:02.1]} 33. Raxe5
{[%clk 0:00:46.4]} 33... fxe5 {[%clk 0:00:02.1]} 34. Rh6+ {[%clk 0:00:46.8]}
34... Kd7 {[%clk 0:00:02.2]} 35. Ne6 {[%clk 0:00:43.7]} 35... Rg8 {[%clk
0:00:02.5]} 36. g4 {[%clk 0:00:42.6]} 36... Rg6 {[%clk 0:00:03]} 37. Nc5+ {[%clk
0:00:37.6]} 37... Kd6 {[%clk 0:00:03.4]} 38. Rxg6+ {[%clk 0:00:32.7]} 38... hxg6
{[%clk 0:00:04.3]} 39. b4 {[%clk 0:00:33.1]} 39... cxb3 {[%clk 0:00:04.7]} 40.
Nxb3 {[%clk 0:00:33.2]} 40... Rf3 {[%clk 0:00:05]} 41. Kc2 {[%clk 0:00:33.7]}
41... Rxh3 {[%clk 0:00:05.1]} 42. a4 {[%clk 0:00:34.6]} 42... Rg3 {[%clk
0:00:02.7]} 43. a5 {[%clk 0:00:34.7]} 43... Kc7 {[%clk 0:00:03.2]} 44. Nc5
{[%clk 0:00:34.3]} 44... Rxg4 {[%clk 0:00:03.5]} 45. Kd3 {[%clk 0:00:34.5]}
45... Rg3+ {[%clk 0:00:03.6]} 46. Ke2 {[%clk 0:00:32.3]} 46... Ra3 {[%clk
0:00:03.6]} 47. a6 {[%clk 0:00:32.1]} 47... Kb6 {[%clk 0:00:04.5]} 48. Nd7+
{[%clk 0:00:32.4]} 48... Kxa6 {[%clk 0:00:04.2]} 49. Nxe5 {[%clk 0:00:33.3]}
49... c5 {[%clk 0:00:04.4]} 50. Nxg6 {[%clk 0:00:33.4]} 50... Kb5 {[%clk
0:00:05]} 51. e5 {[%clk 0:00:33.3]} 51... Kc6 {[%clk 0:00:04.9]} 52. Nf4 {[%clk
0:00:32.3]} 52... c4 {[%clk 0:00:04.7]} 53. e6 {[%clk 0:00:30.4]} 53... Kd6
{[%clk 0:00:04.9]} 54. Kd2 {[%clk 0:00:30.5]} 54... Rf3 {[%clk 0:00:04.8]} 55.
e7 {[%clk 0:00:30]} 55... Kxe7 {[%clk 0:00:04.2]} 56. Nd5+ {[%clk 0:00:28.4]}
56... Kd6 {[%clk 0:00:04]} 57. Nc3 {[%clk 0:00:28.5]} 57... Ke5 {[%clk
0:00:02.5]} 58. Kc2 {[%clk 0:00:25.9]} 58... Kd4 {[%clk 0:00:01.7]} 59. Nb5+
{[%clk 0:00:25.1]} 59... Kc5 {[%clk 0:00:02.2]} 60. Nc7 {[%clk 0:00:22.9]} 60...
Rh3 {[%clk 0:00:03.1]} 61. Ne6+ {[%clk 0:00:22.8]} 61... Kb4 {[%clk 0:00:03.7]}
62. Nd4 {[%clk 0:00:22.5]} 62... Rh2+ {[%clk 0:00:04.6]} 63. Kc1 {[%clk
0:00:22.4]} 63... c3 {[%clk 0:00:04.9]} 64. Nc2+ {[%clk 0:00:21.5]} 64... Kc4
{[%clk 0:00:05.5]} 65. Ne3+ {[%clk 0:00:15.3]} 65... Kd3 {[%clk 0:00:05.2]} 66.
Nd1 {[%clk 0:00:13.6]} 66... Rh1 {[%clk 0:00:05.5]} 67. Kb1 {[%clk 0:00:14.5]}
67... c2+ {[%clk 0:00:05.6]} 68. Ka2 {[%clk 0:00:15.4]} 68... cxd1=Q {[%clk
0:00:05.6]} 69. Kb2 {[%clk 0:00:15.2]} 69... Qa1+ {[%clk 0:00:05.7]} 70. Kb3
{[%clk 0:00:15]} 70... Rb1# {[%clk 0:00:06.6]} 0-1

[Event "Early-Titled-Tuesday-Blitz-May-14-2024"]
[Site "Chess.com"]
[Date "2024.05.14"]
[Round "7"]
[White "carloseduar100"]
[Black "ItsCheckM8Mate"]
[Result "1-0"]
[WhiteElo "2220"]
[BlackElo "2276"]
[TimeControl "180+1"]
[EndTime "9:21:08 PDT"]
[Termination "carloseduar100 won by resignation"]

1. d4 {[%clk 0:03:00.5]} 1... Nf6 {[%clk 0:02:55.7]} 2. Bg5 {[%clk 0:02:36.6]}
2... d5 {[%clk 0:02:54.5]} 3. e3 {[%clk 0:02:35.7]} 3... e6 {[%clk 0:02:51.8]}
4. Nd2 {[%clk 0:02:25.7]} 4... Be7 {[%clk 0:02:50.2]} 5. Bd3 {[%clk 0:02:10.9]}
5... c5 {[%clk 0:02:47.8]} 6. c3 {[%clk 0:02:09.9]} 6... Nc6 {[%clk 0:02:46.8]}
7. f4 {[%clk 0:02:09]} 7... Qb6 {[%clk 0:02:22.9]} 8. Rb1 {[%clk 0:01:41]} 8...
h6 {[%clk 0:02:11.8]} 9. Bh4 {[%clk 0:01:40.7]} 9... Bd7 {[%clk 0:02:04.6]} 10.
Ngf3 {[%clk 0:01:40.4]} 10... cxd4 {[%clk 0:01:55.8]} 11. exd4 {[%clk
0:01:39.6]} 11... Qc7 {[%clk 0:01:43.5]} 12. Ne5 {[%clk 0:01:39.6]} 12... g5
{[%clk 0:01:15]} 13. Nxd7 {[%clk 0:01:33.9]} 13... gxh4 {[%clk 0:01:03.5]} 14.
Nxf6+ {[%clk 0:01:33.2]} 14... Bxf6 {[%clk 0:01:02.6]} 15. O-O {[%clk 0:01:28]}
15... Rg8 {[%clk 0:00:58]} 16. b4 {[%clk 0:01:28]} 16... Ne7 {[%clk 0:00:36.1]}
17. a4 {[%clk 0:01:28]} 17... Qxc3 {[%clk 0:00:33.2]} 18. Nf3 {[%clk 0:01:26.8]}
18... Bxd4+ {[%clk 0:00:22.7]} 19. Nxd4 {[%clk 0:01:18]} 19... Qxd4+ {[%clk
0:00:23.6]} 20. Kh1 {[%clk 0:01:18.4]} 20... O-O-O {[%clk 0:00:21.6]} 21. b5
{[%clk 0:01:16]} 21... Kb8 {[%clk 0:00:21.4]} 22. a5 {[%clk 0:01:16.3]} 22...
Nf5 {[%clk 0:00:21.1]} 23. b6 {[%clk 0:01:12.4]} 23... a6 {[%clk 0:00:20.7]} 24.
Qe2 {[%clk 0:01:09.3]} 24... Qg7 {[%clk 0:00:15.1]} 25. Rf2 {[%clk 0:00:58.7]}
25... Rc8 {[%clk 0:00:14.3]} 26. Bxa6 {[%clk 0:00:56.2]} 26... Qc3 {[%clk
0:00:10.8]} 27. Bd3 {[%clk 0:00:43.8]} 27... Nd4 {[%clk 0:00:07.4]} 28. Qf1
{[%clk 0:00:39.2]} 28... Rc6 {[%clk 0:00:06.1]} 29. a6 {[%clk 0:00:39.1]} 29...
bxa6 {[%clk 0:00:06.1]} 30. Bxa6 {[%clk 0:00:39.1]} 30... Nc2 {[%clk 0:00:04.5]}
31. Bb5 {[%clk 0:00:34.8]} 31... Rxb6 {[%clk 0:00:03.6]} 32. Bd3 {[%clk
0:00:32.3]} 32... Nb4 {[%clk 0:00:03.6]} 33. Rfb2 {[%clk 0:00:25.9]} 33... Rc8
{[%clk 0:00:00.7]} 34. Be2 {[%clk 0:00:20.7]} 34... Rc5 {[%clk 0:00:00.4]} 35.
h3 {[%clk 0:00:18.5]} 35... d4 {[%clk 0:00:00.6]} 36. Qf2 {[%clk 0:00:18.3]}
36... d3 {[%clk 0:00:01.1]} 37. Bf3 {[%clk 0:00:17.3]} 37... d2 {[%clk
0:00:01.3]} 38. Qxd2 {[%clk 0:00:17.5]} 38... Qxd2 {[%clk 0:00:01.7]} 39. Rxd2
{[%clk 0:00:18.4]} 39... Kc7 {[%clk 0:00:02.1]} 40. Rbd1 {[%clk 0:00:18.5]}
40... Nd5 {[%clk 0:00:02.5]} 41. Bxd5 {[%clk 0:00:18.4]} 41... Rxd5 {[%clk
0:00:03.4]} 42. Rxd5 {[%clk 0:00:19.2]} 42... exd5 {[%clk 0:00:04]} 43. Rxd5
{[%clk 0:00:20.1]} 43... Rd6 {[%clk 0:00:04.7]} 44. Rh5 {[%clk 0:00:20.6]} 44...
Rd1+ {[%clk 0:00:04.5]} 45. Kh2 {[%clk 0:00:20.7]} 45... Rd6 {[%clk 0:00:05]}
46. Rxh4 {[%clk 0:00:21.3]} 46... Kd7 {[%clk 0:00:05.8]} 47. Rg4 {[%clk
0:00:20.5]} 47... Ke7 {[%clk 0:00:06.4]} 48. Kg3 {[%clk 0:00:20.9]} 48... Kf6
{[%clk 0:00:06.9]} 49. Kh4 {[%clk 0:00:21.2]} 49... Rd3 {[%clk 0:00:07.5]} 50.
g3 {[%clk 0:00:21.4]} 50... Rd5 {[%clk 0:00:07.8]} 51. Rg8 {[%clk 0:00:21.6]}
51... Rd3 {[%clk 0:00:08]} 52. Rh8 {[%clk 0:00:21.9]} 52... Kg7 {[%clk
0:00:07.9]} 53. Ra8 {[%clk 0:00:22]} 53... Rb3 {[%clk 0:00:08.4]} 54. Kg4 {[%clk
0:00:22.4]} 54... Rc3 {[%clk 0:00:08.8]} 55. h4 {[%clk 0:00:22.9]} 55... h5+
{[%clk 0:00:07.8]} 56. Kxh5 {[%clk 0:00:20]} 56... Rxg3 {[%clk 0:00:07.7]} 57.
Ra5 {[%clk 0:00:20.8]} 57... Rg1 {[%clk 0:00:07.1]} 58. Rg5+ {[%clk 0:00:21.2]}
58... Rxg5+ {[%clk 0:00:06.7]} 59. fxg5 {[%clk 0:00:21.9]} 59... Kh7 {[%clk
0:00:06.9]} 60. Kg4 {[%clk 0:00:22.5]} 60... Kg6 {[%clk 0:00:07.1]} 61. h5+
{[%clk 0:00:23.2]} 61... Kg7 {[%clk 0:00:07.6]} 62. Kf5 {[%clk 0:00:24.1]} 62...
Kh7 {[%clk 0:00:07.7]} 63. Kf6 {[%clk 0:00:25]} 63... Kg8 {[%clk 0:00:08.1]} 64.
h6 {[%clk 0:00:25.4]} 64... Kh8 {[%clk 0:00:07]} 65. Kxf7 {[%clk 0:00:25.4]}
65... Kh7 {[%clk 0:00:07.9]} 66. Kf6 {[%clk 0:00:25.1]} 66... Kh8 {[%clk
0:00:08]} 67. Kg6 {[%clk 0:00:25.7]} 67... Kg8 {[%clk 0:00:08.4]} 68. Kh5 {[%clk
0:00:26.4]} 68... Kh7 {[%clk 0:00:08.3]} 69. g6+ {[%clk 0:00:27.2]} 69... Kg8
{[%clk 0:00:08.9]} 70. Kg5 {[%clk 0:00:28.1]} 70... Kf8 {[%clk 0:00:08.6]} 71.
Kf6 {[%clk 0:00:28.4]} 71... Kg8 {[%clk 0:00:09]} 72. Ke7 {[%clk 0:00:26.1]}
72... Kh8 {[%clk 0:00:08.9]} 73. g7+ {[%clk 0:00:25.5]} 73... Kg8 {[%clk
0:00:09.3]} 74. Kf6 {[%clk 0:00:24.3]} 74... Kh7 {[%clk 0:00:09.3]} 75. Kf7
{[%clk 0:00:24.7]} 75... Kxh6 {[%clk 0:00:10]} 76. g8=Q {[%clk 0:00:24.6]} 76...
Kh5 {[%clk 0:00:10.9]} 77. Kf6 {[%clk 0:00:24.6]} 77... Kh4 {[%clk 0:00:11.8]}
78. Kf5 {[%clk 0:00:25]} 1-0

[Event "Early-Titled-Tuesday-Blitz-May-14-2024"]
[Site "Chess.com"]
[Date "2024.05.14"]
[Round "7"]
[White "Resourchess"]
[Black "dinushkipremanath"]
[Result "1-0"]
[WhiteElo "2384"]
[BlackElo "2025"]
[TimeControl "180+1"]
[EndTime "9:21:14 PDT"]
[Termination "Resourchess won by checkmate"]

1. d4 {[%clk 0:03:00.9]} 1... e6 {[%clk 0:03:00.9]} 2. c4 {[%clk 0:03:00.2]}
2... d5 {[%clk 0:02:54.8]} 3. Nc3 {[%clk 0:02:59.3]} 3... f5 {[%clk 0:02:54.3]}
4. cxd5 {[%clk 0:02:58.2]} 4... exd5 {[%clk 0:02:55.2]} 5. Bf4 {[%clk
0:02:54.2]} 5... Nf6 {[%clk 0:02:55.7]} 6. Nf3 {[%clk 0:02:54.1]} 6... c6 {[%clk
0:02:56.1]} 7. e3 {[%clk 0:02:54.3]} 7... Bd6 {[%clk 0:02:56.4]} 8. Bxd6 {[%clk
0:02:53.8]} 8... Qxd6 {[%clk 0:02:55.9]} 9. Bd3 {[%clk 0:02:51.9]} 9... O-O
{[%clk 0:02:50.9]} 10. Qc2 {[%clk 0:02:40]} 10... Ne4 {[%clk 0:02:49.2]} 11. Ne5
{[%clk 0:02:33.7]} 11... Nd7 {[%clk 0:02:35.5]} 12. f4 {[%clk 0:02:14.8]} 12...
Nxe5 {[%clk 0:02:32.3]} 13. dxe5 {[%clk 0:02:12.8]} 13... Qc5 {[%clk 0:02:31.9]}
14. Nd1 {[%clk 0:01:59.8]} 14... Qb4+ {[%clk 0:02:20.2]} 15. Nc3 {[%clk
0:01:52.2]} 15... Qc5 {[%clk 0:02:19.9]} 16. Qc1 {[%clk 0:01:44.7]} 16... Be6
{[%clk 0:02:13.2]} 17. Bxe4 {[%clk 0:01:42.1]} 17... dxe4 {[%clk 0:01:57.6]} 18.
O-O {[%clk 0:01:36.7]} 18... Rad8 {[%clk 0:01:55.4]} 19. Rd1 {[%clk 0:01:27.5]}
19... Rd3 {[%clk 0:01:55.1]} 20. Rxd3 {[%clk 0:01:03.4]} 20... exd3 {[%clk
0:01:56]} 21. Qd2 {[%clk 0:01:03.4]} 21... Rd8 {[%clk 0:01:54.9]} 22. Rc1 {[%clk
0:01:02.8]} 22... Qa5 {[%clk 0:01:47.7]} 23. a3 {[%clk 0:01:01.6]} 23... c5
{[%clk 0:01:44.4]} 24. h3 {[%clk 0:00:59.9]} 24... c4 {[%clk 0:01:44.6]} 25. Kh2
{[%clk 0:00:58.5]} 25... b5 {[%clk 0:01:44.4]} 26. e4 {[%clk 0:00:57.5]} 26...
Qb6 {[%clk 0:01:40.1]} 27. exf5 {[%clk 0:00:56.5]} 27... Bxf5 {[%clk 0:01:35.8]}
28. Re1 {[%clk 0:00:56.4]} 28... a6 {[%clk 0:01:34.2]} 29. g4 {[%clk 0:00:51.9]}
29... Bc8 {[%clk 0:01:31.8]} 30. f5 {[%clk 0:00:46.7]} 30... a5 {[%clk
0:01:25.6]} 31. Ne4 {[%clk 0:00:40.8]} 31... Qd4 {[%clk 0:01:21.9]} 32. Nd6
{[%clk 0:00:30.2]} 32... Rxd6 {[%clk 0:01:20]} 33. exd6 {[%clk 0:00:30.2]} 33...
Qxd6+ {[%clk 0:01:20.9]} 34. Kg1 {[%clk 0:00:27.7]} 34... Qg3+ {[%clk
0:01:20.2]} 35. Kf1 {[%clk 0:00:26.7]} 35... Qxh3+ {[%clk 0:01:16.9]} 36. Qg2
{[%clk 0:00:27.2]} 36... Qxg2+ {[%clk 0:01:05.9]} 37. Kxg2 {[%clk 0:00:28.1]}
37... Kf7 {[%clk 0:00:55.6]} 38. Kf2 {[%clk 0:00:28]} 38... b4 {[%clk
0:00:54.5]} 39. axb4 {[%clk 0:00:26.8]} 39... axb4 {[%clk 0:00:54.6]} 40. Ke3
{[%clk 0:00:27.1]} 40... Ba6 {[%clk 0:00:51.1]} 41. Ra1 {[%clk 0:00:26.3]} 41...
Bb5 {[%clk 0:00:49.2]} 42. Ra5 {[%clk 0:00:26.6]} 42... Bc6 {[%clk 0:00:47]} 43.
Rc5 {[%clk 0:00:26.6]} 43... Ba4 {[%clk 0:00:43.6]} 44. Rxc4 {[%clk 0:00:26.3]}
44... Bc2 {[%clk 0:00:43.4]} 45. Rxb4 {[%clk 0:00:25.9]} 45... Kf6 {[%clk
0:00:42.9]} 46. Rd4 {[%clk 0:00:23.9]} 46... Kg5 {[%clk 0:00:36.9]} 47. b4
{[%clk 0:00:23.7]} 47... Bd1 {[%clk 0:00:31.8]} 48. Kxd3 {[%clk 0:00:20.2]}
48... Bxg4 {[%clk 0:00:31.9]} 49. Rxg4+ {[%clk 0:00:14.7]} 49... Kxg4 {[%clk
0:00:30.8]} 50. b5 {[%clk 0:00:15.3]} 50... h5 {[%clk 0:00:30.9]} 51. b6 {[%clk
0:00:15.9]} 51... h4 {[%clk 0:00:12.7]} 52. b7 {[%clk 0:00:15.8]} 52... h3
{[%clk 0:00:13.6]} 53. b8=Q {[%clk 0:00:16]} 53... Kxf5 {[%clk 0:00:13.1]} 54.
Qg3 {[%clk 0:00:16.1]} 54... g5 {[%clk 0:00:12.9]} 55. Qxh3+ {[%clk 0:00:16.4]}
55... Kf4 {[%clk 0:00:13.8]} 56. Qe3+ {[%clk 0:00:15.4]} 56... Kg4 {[%clk
0:00:13.8]} 57. Qg1+ {[%clk 0:00:13.6]} 57... Kf4 {[%clk 0:00:13.5]} 58. Ke2
{[%clk 0:00:13.5]} 58... g4 {[%clk 0:00:14.4]} 59. Kf2 {[%clk 0:00:14]} 59...
Kf5 {[%clk 0:00:13]} 60. Kg2 {[%clk 0:00:14.9]} 60... Kf4 {[%clk 0:00:12.2]} 61.
Qd4+ {[%clk 0:00:15]} 61... Kf5 {[%clk 0:00:11.3]} 62. Kg3 {[%clk 0:00:15.9]}
62... Ke6 {[%clk 0:00:10.9]} 63. Qc5 {[%clk 0:00:14.1]} 63... Kf6 {[%clk
0:00:10.8]} 64. Qd5 {[%clk 0:00:13.1]} 64... Kg6 {[%clk 0:00:10.7]} 65. Qe5
{[%clk 0:00:12.3]} 65... Kf7 {[%clk 0:00:08.4]} 66. Qd6 {[%clk 0:00:12.3]} 66...
Ke8 {[%clk 0:00:08.2]} 67. Qc7 {[%clk 0:00:12.3]} 67... Kf8 {[%clk 0:00:07.9]}
68. Kxg4 {[%clk 0:00:13.2]} 68... Ke8 {[%clk 0:00:08.8]} 69. Kf5 {[%clk
0:00:14.1]} 69... Kf8 {[%clk 0:00:09.7]} 70. Kf6 {[%clk 0:00:14.9]} 70... Ke8
{[%clk 0:00:10.4]} 71. Qe7# {[%clk 0:00:15.1]} 1-0